Workbook

Sheet Sheet1
A2: m | B2: x(mm) | C2: kx(1/mm)=m*2*p/L | D2: k (plotted) | E2: mask | F2: f(x) | G2: f(x)^2 | H2: FFT | I2: FFT^2 | J2: inv FFT | K2: inv FFT^2
A3: 0 | B3: =A3*($K$1/1024) -> 0 | C3: =A3*2*PI()/10.24 -> 0 | D3: =A3*2*PI()/10.24 -> 0 | E3: 0 | F3: 0 | G3: =IMABS(F3)^2 -> 0 | H3: 30 | I3: =IMABS(H3)^2 -> 900 | J3: 0 | K3: =IMABS(J3)^2 -> 0
A4: =A3+1 -> 1 | B4: =A4*0.01 -> 0.01 | C4: =A4*2*PI()/10.24 -> 0.6135923152 | D4: =A4*2*PI()/10.24 -> 0.6135923152 | E4: 0 | F4: 0 | G4: 0 | H4: -29.6573637301719-9.09879378342649E-002i | I4: 879.5675022 | J4: 0 | K4: 0
A5: =A4+1 -> 2 | B5: =A5*0.01 -> 0.02 | C5: 1.22718463 | D5: 1.22718463 | E5: 0 | F5: 0 | G5: 0 | H5: 28.6415160635666+0.175744347080596i | I5: 820.3673285 | J5: 0 | K5: 0
A6: 3 | B6: 0.03 | C6: 1.840776945 | D6: 1.840776945 | E6: 0 | F6: 0 | G6: 0 | H6: -26.9881994859368-0.248403291310533i | I6: 728.4246157 | J6: 0 | K6: 0
A7: 4 | B7: 0.04 | C7: 2.454369261 | D7: 2.454369261 | E7: 0 | F7: 0 | G7: 0 | H7: 24.7555316033157+0.303811330287836i | I7: 612.9286463 | J7: 0 | K7: 0
A8: 5 | B8: 0.05 | C8: 3.067961576 | D8: 3.067961576 | E8: 0 | F8: 0 | G8: 0 | H8: -22.0218828162601-0.33783795079739i | I8: 485.0774573 | J8: 0 | K8: 0
A9: 6 | B9: 0.06 | C9: 3.681553891 | D9: 3.681553891 | E9: 0 | F9: 0 | G9: 0 | H9: 18.8830177384448+0.347633502761795i | I9: 356.689208 | J9: 0 | K9: 0
A10: 7 | B10: 0.07 | C10: 4.295146206 | D10: 4.295146206 | E10: 0 | F10: 0 | G10: 0 | H10: -15.4486077956378-0.331821160131617i | I10: 238.7695881 | J10: 0 | K10: 0
A11: 8 | B11: 0.08 | C11: 4.908738521 | D11: 4.908738521 | E11: 0 | F11: 0 | G11: 0 | H11: 11.8382458858806+0.290612624685015i | I11: 140.2285214 | J11: 0 | K11: 0
A12: 9 | B12: 0.09 | C12: 5.522330836 | D12: 5.522330836 | E12: 0 | F12: 0 | G12: 0 | H12: -8.17711238484886-0.22584099627933i | I12: 66.91617111 | J12: 0 | K12: 0
A13: 10 | B13: 0.1 | C13: 6.135923152 | D13: 6.135923152 | E13: 0 | F13: 0 | G13: 0 | H13: 4.59145444255177+0.14090827028571i | I13: 21.10130904 | J13: 0 | K13: 0
A14: 11 | B14: 0.11 | C14: 6.749515467 | D14: 6.749515467 | E14: 0 | F14: 0 | G14: 0 | H14: -1.20404696518344-4.0649100982305E-002i | I14: 1.451381444 | J14: 0 | K14: 0
A15: 12 | B15: 0.12 | C15: 7.363107782 | D15: 7.363107782 | E15: 0 | F15: 0 | G15: 0 | H15: -1.87019632052183-6.88834093733514E-002i | I15: 3.502379201 | J15: 0 | K15: 0
A16: 13 | B16: 0.13 | C16: 7.976700097 | D16: 7.976700097 | E16: 0 | F16: 0 | G16: 0 | H16: 4.52829974088344+0.180700267994599i | I16: 20.53815113 | J16: 0 | K16: 0
A17: 14 | B17: 0.14 | C17: 8.590292412 | D17: 8.590292412 | E17: 0 | F17: 0 | G17: 0 | H17: -6.68284107295309-0.287214436950059i | I17: 44.74285694 | J17: 0 | K17: 0
A18: 15 | B18: 0.15 | C18: 9.203884727 | D18: 9.203884727 | E18: 1 | F18: 0 | G18: 0 | H18: 8.26497425345891+0.38061807884244i | I18: 68.45466953 | J18: 0 | K18: 0
A19: 16 | B19: 0.16 | C19: 9.817477042 | D19: 9.817477042 | E19: 1 | F19: 0 | G19: 0 | H19: -9.22675129219925-0.453281224592102i | I19: 85.33840328 | J19: 0 | K19: 0
A20: 17 | B20: 0.17 | C20: 10.43106936 | D20: 10.43106936 | E20: 1 | F20: 0 | G20: 0 | H20: 9.54266237546242+0.498152635718745i | I20: 91.31056126 | J20: 0 | K20: 0
A21: 18 | B21: 0.18 | C21: 11.04466167 | D21: 11.04466167 | E21: 1 | F21: 0 | G21: 0 | H21: -9.21034315424452-0.509143288863524i | I21: 85.08964791 | J21: 0 | K21: 0
A22: 19 | B22: 0.19 | C22: 11.65825399 | D22: 11.65825399 | E22: 1 | F22: 0 | G22: 0 | H22: 8.25042996040098+0.481473491966967i | I22: 68.30141125 | J22: 0 | K22: 0
A23: 20 | B23: 0.2 | C23: 12.2718463 | D23: 12.2718463 | E23: 1 | F23: 0 | G23: 0 | H23: -6.70557594281366-0.41196612788534i | I23: 45.13446482 | J23: 0 | K23: 0
A24: 21 | B24: 0.21 | C24: 12.88543862 | D24: 12.88543862 | E24: 1 | F24: 0 | G24: 0 | H24: 4.63867261491879+0.29927084833013i | I24: 21.60684667 | J24: 0 | K24: 0
A25: 22 | B25: 0.22 | C25: 13.49903093 | D25: 13.49903093 | E25: 1 | F25: 0 | G25: 0 | H25: -2.1303508420602-0.144007105416083i | I25: 4.559132757 | J25: 0 | K25: 0
A26: 23 | B26: 0.23 | C26: 14.11262325 | D26: 14.11262325 | E26: 1 | F26: 0 | G26: 0 | H26: -0.724138254872754-5.1182428452951E-002i | I26: 0.5269958532 | J26: 0 | K26: 0
A27: 24 | B27: 0.24 | C27: 14.72621556 | D27: 14.72621556 | E27: 1 | F27: 0 | G27: 0 | H27: 3.81853964171166+0.28167240591679i | I27: 14.66058434 | J27: 0 | K27: 0
A28: 25 | B28: 0.25 | C28: 15.33980788 | D28: 15.33980788 | E28: 0 | F28: 0 | G28: 0 | H28: -7.03956767619349-0.5409893284532i | I28: 49.84818252 | J28: 0 | K28: 0
A29: 26 | B29: 0.26 | C29: 15.95340019 | D29: 15.95340019 | E29: 0 | F29: 0 | G29: 0 | H29: 10.2710841940737+0.821035676917462i | I29: 106.1692701 | J29: 0 | K29: 0
A30: 27 | B30: 0.27 | C30: 16.56699251 | D30: 16.56699251 | E30: 0 | F30: 0 | G30: 0 | H30: -13.3983232484484-1.11239505054626i | I30: 180.7524886 | J30: 0 | K30: 0
A31: 28 | B31: 0.28 | C31: 17.18058482 | D31: 17.18058482 | E31: 0 | F31: 0 | G31: 0 | H31: 16.3120045520535+1.40470584473508i | I31: 268.054691 | J31: 0 | K31: 0
A32: 29 | B32: 0.29 | C32: 17.79417714 | D32: 17.79417714 | E32: 0 | F32: 0 | G32: 0 | H32: -18.9121839011159-1.68708766302117i | I32: 360.5169647 | J32: 0 | K32: 0
A33: 30 | B33: 0.3 | C33: 18.40776945 | D33: 18.40776945 | E33: 0 | F33: 0 | G33: 0 | H33: 21.1117008307693+1.94860201794503i | I33: 449.5009618 | J33: 0 | K33: 0
A34: 31 | B34: 0.31 | C34: 19.02136177 | D34: 19.02136177 | E34: 0 | F34: 0 | G34: 0 | H34: -22.839100935108-2.17872705526328i | I34: 526.3713831 | J34: 0 | K34: 0
A35: 32 | B35: 0.32 | C35: 19.63495408 | D35: 19.63495408 | E35: 0 | F35: 0 | G35: 0 | H35: 24.0409319495511+2.36782512572536i | I35: 583.5730048 | J35: 0 | K35: 0
A36: 33 | B36: 0.33 | C36: 20.2485464 | D36: 20.2485464 | E36: 0 | F36: 0 | G36: 0 | H36: -24.6833379412079-2.50758207636683i | I36: 615.5551398 | J36: 0 | K36: 0
A37: 34 | B37: 0.34 | C37: 20.86213872 | D37: 20.86213872 | E37: 0 | F37: 0 | G37: 0 | H37: 24.7529037556338+2.59139814342222i | I37: 619.4215887 | J37: 0 | K37: 0
A38: 35 | B38: 0.35 | C38: 21.47573103 | D38: 21.47573103 | E38: 0 | F38: 0 | G38: 0 | H38: -24.2567311087787-2.61471226189075i | I38: 595.2257243 | J38: 0 | K38: 0
A39: 36 | B39: 0.36 | C39: 22.08932335 | D39: 22.08932335 | E39: 0 | F39: 0 | G39: 0 | H39: 23.2217572312354+2.57524438053125i | I39: 545.8818925 | J39: 0 | K39: 0
A40: 37 | B40: 0.37 | C40: 22.70291566 | D40: 22.70291566 | E40: 0 | F40: 0 | G40: 0 | H40: -21.6933556121715-2.47314386486949i | I40: 476.7181183 | J40: 0 | K40: 0
A41: 38 | B41: 0.38 | C41: 23.31650798 | D41: 23.31650798 | E41: 0 | F41: 0 | G41: 0 | H41: 19.7332850465423+2.31103613058273i | I41: 394.7434267 | J41: 0 | K41: 0
A42: 39 | B42: 0.39 | C42: 23.93010029 | D42: 23.93010029 | E42: 0 | F42: 0 | G42: 0 | H42: -17.4170768486972-2.09396409483825i | I42: 307.7392516 | J42: 0 | K42: 0
A43: 40 | B43: 0.4 | C43: 24.54369261 | D43: 24.54369261 | E43: 0 | F43: 0 | G43: 0 | H43: 14.8309698783545+1.82922566499332i | I43: 223.3037341 | J43: 0 | K43: 0
A44: 41 | B44: 0.41 | C44: 25.15728492 | D44: 25.15728492 | E44: 0 | F44: 0 | G44: 0 | H44: -12.06851821725-1.52611309441559i | I44: 147.9781531 | J44: 0 | K44: 0
A45: 42 | B45: 0.42 | C45: 25.77087724 | D45: 25.77087724 | E45: 0 | F45: 0 | G45: 0 | H45: 9.22700641514601+1.19556441614273i | I45: 86.56702166 | J45: 0 | K45: 0
A46: 43 | B46: 0.43 | C46: 26.38446955 | D46: 26.38446955 | E46: 0 | F46: 0 | G46: 0 | H46: -6.40381188157734-0.849741118382673i | I46: 41.73086658 | J46: 0 | K46: 0
A47: 44 | B47: 0.44 | C47: 26.99806187 | D47: 26.99806187 | E47: 0 | F47: 0 | G47: 0 | H47: 3.69285314416691+0.501549571861002i | I47: 13.88871632 | J47: 0 | K47: 0
A48: 45 | B48: 0.45 | C48: 27.61165418 | D48: 27.61165418 | E48: 1 | F48: 0 | G48: 0 | H48: -1.18125645568265-0.164126305019421i | I48: 1.422304258 | J48: 0 | K48: 0
A49: 46 | B49: 0.46 | C49: 28.2252465 | D49: 28.2252465 | E49: 1 | F49: 0 | G49: 0 | H49: -1.0536380474483-0.149691069789636i | I49: 1.132560551 | J49: 0 | K49: 0
A50: 47 | B50: 0.47 | C50: 28.83883881 | D50: 28.83883881 | E50: 1 | F50: 0 | G50: 0 | H50: 2.9468252151244+0.427884727202079i | I50: 8.866864188 | J50: 0 | K50: 0
A51: 48 | B51: 0.48 | C51: 29.45243113 | D51: 29.45243113 | E51: 1 | F51: 0 | G51: 0 | H51: -4.44765293970447-0.659746991038888i | I51: 20.21688276 | J51: 0 | K51: 0
A52: 49 | B52: 0.49 | C52: 30.06602344 | D52: 30.06602344 | E52: 1 | F52: 0 | G52: 0 | H52: 5.52124608104551+0.836319114762512i | I52: 31.18358795 | J52: 0 | K52: 0
A53: 50 | B53: 0.5 | C53: 30.67961576 | D53: 30.67961576 | E53: 1 | F53: 0 | G53: 0 | H53: -6.14929746511859-0.950759573887702i | I53: 38.71780308 | J53: 0 | K53: 0
A54: 51 | B54: 0.51 | C54: 31.29320807 | D54: 31.29320807 | E54: 1 | F54: 0 | G54: 0 | H54: 6.3302126661181+0.998625969971116i | I54: 41.06884623 | J54: 0 | K54: 0
A55: 52 | B55: 0.52 | C55: 31.90680039 | D55: 31.90680039 | E55: 1 | F55: 0 | G55: 0 | H55: -6.07862073619276-0.97805835829143i | I55: 37.90622821 | J55: 0 | K55: 0
A56: 53 | B56: 0.53 | C56: 32.5203927 | D56: 32.5203927 | E56: 1 | F56: 0 | G56: 0 | H56: 5.42428743714662+0.889856065834041i | I56: 30.21473802 | J56: 0 | K56: 0
A57: 54 | B57: 0.54 | C57: 33.13398502 | D57: 33.13398502 | E57: 1 | F57: 0 | G57: 0 | H57: -4.41048990384799-0.737444673692754i | I57: 19.99624584 | J57: 0 | K57: 0
A58: 55 | B58: 0.55 | C58: 33.74757733 | D58: 33.74757733 | E58: 0 | F58: 0 | G58: 0 | H58: 3.09193117845314+0.526734593524273i | I58: 9.837487744 | J58: 0 | K58: 0
A59: 56 | B59: 0.56 | C59: 34.36116965 | D59: 34.36116965 | E59: 0 | F59: 0 | G59: 0 | H59: -1.53228897922516-0.265877359583394i | I59: 2.418600286 | J59: 0 | K59: 0
A60: 57 | B60: 0.57 | C60: 34.97476196 | D60: 34.97476196 | E60: 0 | F60: 0 | G60: 0 | H60: -0.198495151570939-3.50698226559884E-002i | I60: 0.04063021766 | J60: 0 | K60: 0
A61: 58 | B61: 0.58 | C61: 35.58835428 | D61: 35.58835428 | E61: 0 | F61: 0 | G61: 0 | H61: 2.02707291946708+0.364556779700024i | I61: 4.241926266 | J61: 0 | K61: 0
A62: 59 | B62: 0.59 | C62: 36.20194659 | D62: 36.20194659 | E62: 0 | F62: 0 | G62: 0 | H62: -3.87957662374396-0.710012527053521i | I62: 15.55523257 | J62: 0 | K62: 0
A63: 60 | B63: 0.6 | C63: 36.81553891 | D63: 36.81553891 | E63: 0 | F63: 0 | G63: 0 | H63: 5.68442299301063+1.05835656603745i | I63: 33.43278338 | J63: 0 | K63: 0
A64: 61 | B64: 0.61 | C64: 37.42913122 | D64: 37.42913122 | E64: 0 | F64: 0 | G64: 0 | H64: -7.37492639354989-1.39652739128519i | I64: 56.33982806 | J64: 0 | K64: 0
A65: 62 | B65: 0.62 | C65: 38.04272354 | D65: 38.04272354 | E65: 0 | F65: 0 | G65: 0 | H65: 8.89162508950175+1.71200563552038i | I65: 81.99196003 | J65: 0 | K65: 0
A66: 63 | B66: 0.63 | C66: 38.65631585 | D66: 38.65631585 | E66: 0 | F66: 0 | G66: 0 | H66: -10.1842386191707-1.99330963092438i | I66: 107.6919995 | J66: 0 | K66: 0
A67: 64 | B67: 0.64 | C67: 39.26990817 | D67: 39.26990817 | E67: 0 | F67: 0 | G67: =IMABS(F67)^2 -> 0 | H67: 11.2131916520328+2.23044249738766i | I67: =IMABS(H67)^2 -> 130.7105408 | J67: 0 | K67: =IMABS(J67)^2 -> 0
A68: 65 | B68: 0.65 | C68: =A68*2*PI()/10.24 -> 39.88350049 | D68: =A68*2*PI()/10.24 -> 39.88350049 | E68: 0 | F68: 0 | G68: 0 | H68: -11.9506591275095-2.41527211455793i | I68: 148.651793 | J68: 0 | K68: 0
A69: =A68+1 -> 66 | B69: =A69*0.01 -> 0.66 | C69: 40.4970928 | D69: 40.4970928 | E69: 0 | F69: 0 | G69: 0 | H69: 12.3811082000535+2.54182839317208i | I69: 159.7527318 | J69: 0 | K69: 0
A70: 67 | B70: 0.67 | C70: 41.11068512 | D70: 41.11068512 | E70: 0 | F70: 0 | G70: 0 | H70: -12.5013336426413-2.60650599174894i | I70: 163.0772163 | J70: 0 | K70: 0
A71: 68 | B71: 0.68 | C71: 41.72427743 | D71: 41.72427743 | E71: 0 | F71: 0 | G71: 0 | H71: 12.3200040130937+2.60816485755392i | I71: 158.5850228 | J71: 0 | K71: 0
A72: 69 | B72: 0.69 | C72: 42.33786975 | D72: 42.33786975 | E72: 0 | F72: 0 | G72: 0 | H72: -11.8567552256019-2.54812551395965i | I72: 147.0755881 | J72: 0 | K72: 0
A73: 70 | B73: 0.7 | C73: 42.95146206 | D73: 42.95146206 | E73: 0 | F73: 0 | G73: 0 | H73: 11.1408854285116+2.43006066474205i | I73: 130.024523 | J73: 0 | K73: 0
A74: 71 | B74: 0.71 | C74: 43.56505438 | D74: 43.56505438 | E74: 0 | F74: 0 | G74: 0 | H74: -10.2097196085332-2.25978923029576i | I74: 109.3450219 | J74: 0 | K74: 0
A75: 72 | B75: 0.72 | C75: 44.17864669 | D75: 44.17864669 | E75: 0 | F75: 0 | G75: 0 | H75: 9.10672359079773+2.04498316758907i | I75: 87.11437071 | J75: 0 | K75: 0
A76: 73 | B76: 0.73 | C76: 44.79223901 | D76: 44.79223901 | E76: 0 | F76: 0 | G76: 0 | H76: -7.87945470272714-1.79480116601764i | I76: 65.30711764 | J76: 0 | K76: 0
A77: 74 | B77: 0.74 | C77: 45.40583132 | D77: 45.40583132 | E77: 0 | F77: 0 | G77: 0 | H77: 6.57744009886246+1.51946638957988i | I77: 45.57149636 | J77: 0 | K77: 0
A78: 75 | B78: 0.75 | C78: 46.01942364 | D78: 46.01942364 | E78: 1 | F78: 0 | G78: 0 | H78: -5.25007355281082-1.22980771716092i | I78: 29.07569933 | J78: 0 | K78: 0
A79: 76 | B79: 0.76 | C79: 46.63301595 | D79: 46.63301595 | E79: 1 | F79: 0 | G79: 0 | H79: 3.94461752687547+0.93678531916022i | I79: 16.43757417 | J79: 0 | K79: 0
A80: 77 | B80: 0.77 | C80: 47.24660827 | D80: 47.24660827 | E80: 1 | F80: 0 | G80: 0 | H80: -2.70438980307285-0.65102184335255i | I80: 7.737553647 | J80: 0 | K80: 0
A81: 78 | B81: 0.78 | C81: 47.86020058 | D81: 47.86020058 | E81: 1 | F81: 0 | G81: 0 | H81: 1.56720331720289+0.382359952457477i | I81: 2.602325371 | J81: 0 | K81: 0
A82: 79 | B82: 0.79 | C82: 48.4737929 | D82: 48.4737929 | E82: 1 | F82: 0 | G82: 0 | H82: -0.564114618434573-0.139465491181225i | I82: 0.337675926 | J82: 0 | K82: 0
A83: 80 | B83: 0.8 | C83: 49.08738521 | D83: 49.08738521 | E83: 1 | F83: 0 | G83: 0 | H83: -0.281478785164073-7.05067652540897E-002i | I83: 0.08420151044 | J83: 0 | K83: 0
A84: 81 | B84: 0.81 | C84: 49.70097753 | D84: 49.70097753 | E84: 1 | F84: 0 | G84: 0 | H84: 0.954368338089404+0.242170903625633i | I84: 0.9694656713 | J84: 0 | K84: 0
A85: 82 | B85: 0.82 | C85: 50.31456984 | D85: 50.31456984 | E85: 1 | F85: 0 | G85: 0 | H85: -1.44768465632601-0.372081006209798i | I85: 2.234235139 | J85: 0 | K85: 0
A86: 83 | B86: 0.83 | C86: 50.92816216 | D86: 50.92816216 | E86: 1 | F86: 0 | G86: 0 | H86: 1.76267777537097+0.458809532658026i | I86: 3.317539127 | J86: 0 | K86: 0
A87: 84 | B87: 0.84 | C87: 51.54175447 | D87: 51.54175447 | E87: 1 | F87: 0 | G87: 0 | H87: -1.90815287182232-0.502931203463255i | I87: 3.893987178 | J87: 0 | K87: 0
A88: 85 | B88: 0.85 | C88: 52.15534679 | D88: 52.15534679 | E88: 0 | F88: 0 | G88: 0 | H88: 1.89960102395433+0.506915020780566i | I88: 3.865446889 | J88: 0 | K88: 0
A89: 86 | B89: 0.86 | C89: 52.7689391 | D89: 52.7689391 | E89: 0 | F89: 0 | G89: 0 | H89: -1.75807652763736-0.474931279329145i | I89: 3.316392797 | J89: 0 | K89: 0
A90: 87 | B90: 0.87 | C90: 53.38253142 | D90: 53.38253142 | E90: 0 | F90: 0 | G90: 0 | H90: 1.50888160469682+0.412584277820841i | I90: 2.446949483 | J90: 0 | K90: 0
A91: 88 | B91: 0.88 | C91: 53.99612373 | D91: 53.99612373 | E91: 0 | F91: 0 | G91: 0 | H91: -1.18012569668421-0.326584763722939i | I91: 1.499354268 | J91: 0 | K91: 0
A92: 89 | B92: 0.89 | C92: 54.60971605 | D92: 54.60971605 | E92: 0 | F92: 0 | G92: 0 | H92: 0.801229730648882+0.224378780670009i | I92: 0.6923149185 | J92: 0 | K92: 0
A93: 90 | B93: 0.9 | C93: 55.22330836 | D93: 55.22330836 | E93: 0 | F93: 0 | G93: 0 | H93: -0.401445720273774-0.113751420470435i | I93: 0.174098052 | J93: 0 | K93: 0
A94: 91 | B94: 0.91 | C94: 55.83690068 | D94: 55.83690068 | E94: 0 | F94: 0 | G94: 0 | H94: 8.45891316921802E-003+2.42493021115398E-003i | I94: 7.743349853e-05 | J94: 0 | K94: 0
A95: 92 | B95: 0.92 | C95: 56.45049299 | D95: 56.45049299 | E95: 0 | F95: 0 | G95: 0 | H95: 0.352866364115193+0.1023293493293i | I95: 0.1349859667 | J95: 0 | K95: 0
A96: 93 | B96: 0.93 | C96: 57.06408531 | D96: 57.06408531 | E96: 0 | F96: 0 | G96: 0 | H96: -0.661544632500893-0.1940466305882i | I96: 0.4752953956 | J96: 0 | K96: 0
A97: 94 | B97: 0.94 | C97: 57.67767762 | D97: 57.67767762 | E97: 0 | F97: 0 | G97: 0 | H97: 0.90128915953733+0.267375092394516i | I97: 0.8838115891 | J97: 0 | K97: 0
A98: 95 | B98: 0.95 | C98: 58.29126994 | D98: 58.29126994 | E98: 0 | F98: 0 | G98: 0 | H98: -1.06106434351664-0.318318788640708i | I98: 1.227184392 | J98: 0 | K98: 0
A99: 96 | B99: 0.96 | C99: 58.90486225 | D99: 58.90486225 | E99: 0 | F99: 0 | G99: 0 | H99: 1.13535439392713+0.344405990116817i | I99: 1.407645086 | J99: 0 | K99: 0
A100: 97 | B100: 0.97 | C100: 59.51845457 | D100: 59.51845457 | E100: 0 | F100: 0 | G100: 0 | H100: -1.12414578624158-0.344775611533648i | I100: 1.382573971 | J100: 0 | K100: 0
A101: 98 | B101: 0.98 | C101: 60.13204689 | D101: 60.13204689 | E101: 0 | F101: 0 | G101: 0 | H101: 1.03263437985331+0.32017841861734i | I101: 1.168847982 | J101: 0 | K101: 0
A102: 99 | B102: 0.99 | C102: 60.7456392 | D102: 60.7456392 | E102: 0 | F102: 0 | G102: 0 | H102: -0.870680644948653-0.272893889202915i | I102: 0.8325558603 | J102: 0 | K102: 0
A103: 100 | B103: 1 | C103: 61.35923152 | D103: 61.35923152 | F103: 0 | G103: 0 | H103: 0.652047600351925+0.206567719294468i | I103: 0.4678362958 | J103: 0 | K103: 0
A104: 101 | B104: 1.01 | C104: 61.97282383 | D104: 61.97282383 | F104: 0 | G104: 0 | H104: -0.393465347404991-0.125978825262479i | I104: 0.170685644 | J104: 0 | K104: 0
A105: 102 | B105: 1.02 | C105: 62.58641615 | D105: 62.58641615 | F105: 0 | G105: 0 | H105: 0.113573116153312+3.67481143279573E-002i | I105: 0.01424927662 | J105: 0 | K105: 0
A106: 103 | B106: 1.03 | C106: 63.20000846 | D106: 63.20000846 | F106: 0 | G106: 0 | H106: 0.168205750178144+5.4995884202457E-002i | I106: 0.03131772167 | J106: 0 | K106: 0
A107: 104 | B107: 1.04 | C107: 63.81360078 | D107: 63.81360078 | F107: 0 | G107: 0 | H107: -0.432798609078922-0.14297734781637i | I107: 0.207757158 | J107: 0 | K107: 0
A108: 105 | B108: 1.05 | C108: 64.42719309 | D108: 64.42719309 | F108: 0 | G108: 0 | H108: 0.662571730223998+0.221141015958893i | I108: 0.4879046466 | J108: 0 | K108: 0
A109: 106 | B109: 1.06 | C109: 65.04078541 | D109: 65.04078541 | F109: 0 | G109: 0 | H109: -0.842318971496907-0.284008774024381i | I109: 0.7901622335 | J109: 0 | K109: 0
A110: 107 | B110: 1.07 | C110: 65.65437772 | D110: 65.65437772 | F110: 0 | G110: 0 | H110: 0.960103849084825+0.32700671329711i | I110: 1.028732792 | J110: 0 | K110: 0
A111: 108 | B111: 1.08 | C111: 66.26797004 | D111: 66.26797004 | F111: 0 | G111: 0 | H111: -1.00791587379295-0.346745841088551i | I111: 1.136127087 | J111: 0 | K111: 0
A112: 109 | B112: 1.09 | C112: 66.88156235 | D112: 66.88156235 | F112: 0 | G112: 0 | H112: 0.98211164543432+0.341241857769539i | I112: 1.08098929 | J112: 0 | K112: 0
A113: 110 | B113: 1.1 | C113: 67.49515467 | D113: 67.49515467 | F113: 0 | G113: 0 | H113: -0.883622022245197-0.310062369490759i | I113: 0.8769265512 | J113: 0 | K113: 0
A114: 111 | B114: 1.11 | C114: 68.10874698 | D114: 68.10874698 | F114: 0 | G114: 0 | H114: 0.717918194700445+0.254393427909896i | I114: 0.5801225504 | J114: 0 | K114: 0
A115: 112 | B115: 1.12 | C115: 68.7223393 | D115: 68.7223393 | F115: 0 | G115: 0 | H115: -0.494741152489887-0.177021214930623i | I115: 0.2761053185 | J115: 0 | K115: 0
A116: 113 | B116: 1.13 | C116: 69.33593161 | D116: 69.33593161 | F116: 0 | G116: 0 | H116: 0.227610301725081+8.22288357269852E-002i | I116: 0.05856803088 | J116: 0 | K116: 0
A117: 114 | B117: 1.14 | C117: 69.94952393 | D117: 69.94952393 | F117: 0 | G117: 0 | H117: 6.68626448827527E-002+2.43876490658649E-002i | I117: 0.005065370708 | J117: 0 | K117: 0
A118: 115 | B118: 1.15 | C118: 70.56311624 | D118: 70.56311624 | F118: 0 | G118: 0 | H118: -0.369819381598944-0.136175828922727i | I118: 0.1553102314 | J118: 0 | K118: 0
A119: 116 | B119: 1.16 | C119: 71.17670856 | D119: 71.17670856 | F119: 0 | G119: 0 | H119: 0.661117961717401+0.245744436946848i | I119: 0.4974672876 | J119: 0 | K119: 0
A120: 117 | B120: 1.17 | C120: 71.79030087 | D120: 71.79030087 | F120: 0 | G120: 0 | H120: -0.920365446987371-0.345326893653265i | I120: 0.9663232195 | J120: 0 | K120: 0
A121: 118 | B121: 1.18 | C121: 72.40389319 | D121: 72.40389319 | F121: 0 | G121: 0 | H121: 1.12796981301517+0.427173663029429i | I121: 1.454793237 | J121: 0 | K121: 0
A122: 119 | B122: 1.19 | C122: 73.0174855 | D122: 73.0174855 | F122: 0 | G122: 0 | H122: -1.26616014753656-0.483954587106801i | I122: 1.837373562 | J122: 0 | K122: 0
A123: 120 | B123: 1.2 | C123: 73.63107782 | D123: 73.63107782 | F123: 0 | G123: 0 | H123: 1.31992602903885+0.509151653729492i | I123: 2.001440129 | J123: 0 | K123: 0
A124: 121 | B124: 1.21 | C124: 74.24467013 | D124: 74.24467013 | F124: 0 | G124: 0 | H124: -1.27783108224655-0.497422863524993i | I124: 1.88028178 | J124: 0 | K124: 0
A125: 122 | B125: 1.22 | C125: 74.85826245 | D125: 74.85826245 | F125: 0 | G125: 0 | H125: 1.13266185972915+0.444918991918923i | I125: 1.480875798 | J125: 0 | K125: 0
A126: 123 | B126: 1.23 | C126: 75.47185476 | D126: 75.47185476 | F126: 0 | G126: 0 | H126: -0.881881090756497-0.349537043131199i | I126: 0.8998904028 | J126: 0 | K126: 0
A127: 124 | B127: 1.24 | C127: 76.08544708 | D127: 76.08544708 | F127: 0 | G127: 0 | H127: 0.527863589998641+0.211096977337771i | I127: 0.3232019035 | J127: 0 | K127: 0
A128: 125 | B128: 1.25 | C128: 76.69903939 | D128: 76.69903939 | F128: 0 | G128: 0 | H128: -7.79032933749185E-002-3.14317345825227E-002i | I128: 0.007056877058 | J128: 0 | K128: 0
A129: 126 | B129: 1.26 | C129: 77.31263171 | D129: 77.31263171 | F129: 0 | G129: 0 | H129: -0.456009486553051-0.185615476635818i | I129: 0.242397757 | J129: 0 | K129: 0
A130: 127 | B130: 1.27 | C130: 77.92622402 | D130: 77.92622402 | F130: 0 | G130: 0 | H130: 1.05763090537998+0.434288392194652i | I130: 1.30718954 | J130: 0 | K130: 0
A131: 128 | B131: 1.28 | C131: 78.53981634 | D131: 78.53981634 | F131: 0 | G131: =IMABS(F131)^2 -> 0 | H131: -1.70710678118655-0.707106781186546i | I131: =IMABS(H131)^2 -> 3.414213562 | J131: 0 | K131: =IMABS(J131)^2 -> 0
A132: 129 | B132: 1.29 | C132: =A132*2*PI()/10.24 -> 79.15340865 | D132: =A132*2*PI()/10.24 -> 79.15340865 | F132: 0 | G132: 0 | H132: 2.38178728623329+0.995140471262126i | I132: 6.663215234 | J132: 0 | K132: 0
A133: =A132+1 -> 130 | B133: =A133*0.01 -> 1.3 | C133: 79.76700097 | D133: 79.76700097 | F133: 0 | G133: 0 | H133: -3.0571765539082-1.28835733467687i | I133: 11.0061931 | J133: 0 | K133: 0
A134: 131 | B134: 1.31 | C134: 80.38059329 | D134: 80.38059329 | F134: 0 | G134: 0 | H134: 3.7079745968819+1.57603068933046i | I134: 16.23294834 | J134: 0 | K134: 0
A135: 132 | B135: 1.32 | C135: 80.9941856 | D135: 80.9941856 | F135: 0 | G135: 0 | H135: -4.30916487444038-1.8471886336152i | I135: 21.98100776 | J135: 0 | K135: 0
A136: 133 | B136: 1.33 | C136: 81.60777792 | D136: 81.60777792 | F136: 0 | G136: 0 | H136: 4.8370989178495+2.09108567255088i | I136: 27.77016523 | J136: 0 | K136: 0
A137: 134 | B137: 1.34 | C137: 82.22137023 | D137: 82.22137023 | F137: 0 | G137: 0 | H137: -5.27052968996207-2.29767571029191i | I137: 33.05779688 | J137: 0 | K137: 0
A138: 135 | B138: 1.35 | C138: 82.83496255 | D138: 82.83496255 | F138: 0 | G138: 0 | H138: 5.5915477875046+2.45806514562983i | I138: 37.30749092 | J138: 0 | K138: 0
A139: 136 | B139: 1.36 | C139: 83.44855486 | D139: 83.44855486 | F139: 0 | G139: 0 | H139: -5.78637906336113-2.56492543460435i | I139: 40.06102515 | J139: 0 | K139: 0
A140: 137 | B140: 1.37 | C140: 84.06214718 | D140: 84.06214718 | F140: 0 | G140: 0 | H140: 5.84600853372947+2.61284605568146i | I140: 41.00278029 | J140: 0 | K140: 0
A141: 138 | B141: 1.38 | C141: 84.67573949 | D141: 84.67573949 | F141: 0 | G141: 0 | H141: -5.76660324431544-2.59861126279488i | I141: 40.00649347 | J141: 0 | K141: 0
A142: 139 | B142: 1.39 | C142: 85.28933181 | D142: 85.28933181 | F142: 0 | G142: 0 | H142: 5.54971573901596+2.52138723409189i | I142: 37.15673837 | J142: 0 | K142: 0
A143: 140 | B143: 1.4 | C143: 85.90292412 | D143: 85.90292412 | F143: 0 | G143: 0 | H143: -5.20225949418552-2.38281007797183i | I143: 32.74128771 | J143: 0 | K143: 0
A144: 141 | B144: 1.41 | C144: 86.51651644 | D144: 86.51651644 | F144: 0 | G144: 0 | H144: 4.73625771287575+2.1869694720737i | I144: 27.21497259 | J144: 0 | K144: 0
A145: 142 | B145: 1.42 | C145: 87.13010875 | D145: 87.13010875 | F145: 0 | G145: 0 | H145: -4.16837676849171-1.94028729271366i | I145: 21.14007966 | J145: 0 | K145: 0
A146: 143 | B146: 1.43 | C146: 87.74370107 | D146: 87.74370107 | F146: 0 | G146: 0 | H146: 3.51926490910707+1.65129523638953i | I146: 15.11200146 | J146: 0 | K146: 0
A147: 144 | B147: 1.44 | C147: 88.35729338 | D147: 88.35729338 | F147: 0 | G147: 0 | H147: -2.81272517540362-1.33031993222864i | I147: 9.681174034 | J147: 0 | K147: 0
A148: 145 | B148: 1.45 | C148: 88.9708857 | D148: 88.9708857 | F148: 0 | G148: 0 | H148: 2.07475848797804+0.989088191401915i | I148: 5.282918234 | J148: 0 | K148: 0
A149: 146 | B149: 1.46 | C149: 89.58447801 | D149: 89.58447801 | F149: 0 | G149: 0 | H149: -1.33251822804898-0.640268648446719i | I149: 2.18554877 | J149: 0 | K149: 0
A150: 147 | B150: 1.47 | C150: 90.19807033 | D150: 90.19807033 | F150: 0 | G150: 0 | H150: 0.613221149579014+0.296968955740703i | I150: 0.464230739 | J150: 0 | K150: 0
A151: 148 | B151: 1.48 | C151: 90.81166264 | D151: 90.81166264 | F151: 0 | G151: 0 | H151: 5.69390147533214E-002+2.77902370998228E-002i | I151: 0.004014348679 | J151: 0 | K151: 0
A152: 149 | B152: 1.49 | C152: 91.42525496 | D152: 91.42525496 | F152: 0 | G152: 0 | H152: -0.653829402125769-0.321602148158566i | I152: 0.5309208288 | J152: 0 | K152: 0
A153: 150 | B153: 1.5 | C153: 92.03884727 | D153: 92.03884727 | F153: 0 | G153: 0 | H153: 1.1563239723581+0.573179048386724i | I153: 1.665619351 | J153: 0 | K153: 0
A154: 151 | B154: 1.51 | C154: 92.65243959 | D154: 92.65243959 | F154: 0 | G154: 0 | H154: -1.54711857409441-0.772814084854168i | I154: 2.990817492 | J154: 0 | K154: 0
A155: 152 | B155: 1.52 | C155: 93.2660319 | D155: 93.2660319 | F155: 0 | G155: 0 | H155: 1.81338213865875+0.912779862172389i | I155: 4.121521858 | J155: 0 | K155: 0
A156: 153 | B156: 1.53 | C156: 93.87962422 | D156: 93.87962422 | F156: 0 | G156: 0 | H156: -1.94721838385591-0.987646586340931i | I156: 4.767105214 | J156: 0 | K156: 0
A157: 154 | B157: 1.54 | C157: 94.49321653 | D157: 94.49321653 | F157: 0 | G157: 0 | H157: 1.94592080160166+0.99450602324378i | I157: 4.775649996 | J157: 0 | K157: 0
A158: 155 | B158: 1.55 | C158: 95.10680885 | D158: 95.10680885 | F158: 0 | G158: 0 | H158: -1.81201273836792-0.933091583210876i | I158: 4.154050067 | J158: 0 | K158: 0
A159: 156 | B159: 1.56 | C159: 95.72040116 | D159: 95.72040116 | F159: 0 | G159: 0 | H159: 1.55307365240935+0.805789333264759i | I159: 3.061334219 | J159: 0 | K159: 0
A160: 157 | B160: 1.57 | C160: 96.33399348 | D160: 96.33399348 | F160: 0 | G160: 0 | H160: -1.18136173770469-0.617539460222904i | I160: 1.77697054 | J160: 0 | K160: 0
A161: 158 | B161: 1.58 | C161: 96.94758579 | D161: 96.94758579 | F161: 0 | G161: 0 | H161: 0.713251645494056+0.375632450600757i | I161: 0.6498276477 | J161: 0 | K161: 0
A162: 159 | B162: 1.59 | C162: 97.56117811 | D162: 97.56117811 | F162: 0 | G162: 0 | H162: -0.168513644483803-8.9408806176373E-002i | I162: 0.036390783 | J162: 0 | K162: 0
A163: 160 | B163: 1.6 | C163: 98.17477042 | D163: 98.17477042 | F163: 0 | G163: 0 | H163: -0.430533079461759-0.230124725367495i | I163: 0.2383161217 | J163: 0 | K163: 0
A164: 161 | B164: 1.61 | C164: 98.78836274 | D164: 98.78836274 | F164: 0 | G164: 0 | H164: 1.05995543411323+0.570745841891573i | I164: 1.449256338 | J164: 0 | K164: 0
A165: 162 | B165: 1.62 | C165: 99.40195505 | D165: 99.40195505 | F165: 0 | G165: 0 | H165: -1.69518904326567-0.919514889940459i | I165: 3.719173525 | J165: 0 | K165: 0
A166: 163 | B166: 1.63 | C166: 100.0155474 | D166: 100.0155474 | F166: 0 | G166: 0 | H166: 2.312026445422+1.26329918295521i | I166: 6.94139111 | J166: 0 | K166: 0
A167: 164 | B167: 1.64 | C167: 100.6291397 | D167: 100.6291397 | F167: 0 | G167: 0 | H167: -2.8875693400162-1.58930099969656i | I167: 10.86393436 | J167: 0 | K167: 0
A168: 165 | B168: 1.65 | C168: 101.242732 | D168: 101.242732 | F168: 0 | G168: 0 | H168: 3.40110565068501+1.8855667816599i | I168: 15.12288174 | J168: 0 | K168: 0
A169: 166 | B169: 1.66 | C169: 101.8563243 | D169: 101.8563243 | F169: 0 | G169: 0 | H169: -3.83487613552683-2.14145599303831i | I169: 19.29210874 | J169: 0 | K169: 0
A170: 167 | B170: 1.67 | C170: 102.4699166 | D170: 102.4699166 | F170: 0 | G170: 0 | H170: 4.17470069592555+2.34804999738667i | I170: 22.94146469 | J170: 0 | K170: 0
A171: 168 | B171: 1.68 | C171: 103.0835089 | D171: 103.0835089 | F171: 0 | G171: 0 | H171: -4.41044115598786-2.49848405382104i | I171: 25.69441376 | J171: 0 | K171: 0
A172: 169 | B172: 1.69 | C172: 103.6971013 | D172: 103.6971013 | F172: 0 | G172: 0 | H172: 4.53628479271512+2.58818901623456i | I172: 27.2766021 | J172: 0 | K172: 0
A173: 170 | B173: 1.7 | C173: 104.3106936 | D173: 104.3106936 | F173: 0 | G173: 0 | H173: -4.55084094720386-2.6150333729212i | I173: 27.54855287 | J173: 0 | K173: 0
A174: 171 | B174: 1.71 | C174: 104.9242859 | D174: 104.9242859 | F174: 0 | G174: 0 | H174: 4.45705127555404+2.57936070714026i | I174: 26.51840773 | J174: 0 | K174: 0
A175: 172 | B175: 1.72 | C175: 105.5378782 | D175: 105.5378782 | F175: 0 | G175: 0 | H175: -4.26192223897134-2.4839222905798i | I175: 24.33385112 | J175: 0 | K175: 0
A176: 173 | B176: 1.73 | C176: 106.1514705 | D176: 106.1514705 | F176: 0 | G176: 0 | H176: 3.97609593440694+2.33370913266793i | I176: 21.2555372 | J176: 0 | K176: 0
A177: 174 | B177: 1.74 | C177: 106.7650628 | D177: 106.7650628 | F177: 0 | G177: 0 | H177: -3.61328200847011-2.13569219225399i | I177: 17.61698801 | J177: 0 | K177: 0
A178: 175 | B178: 1.75 | C178: 107.3786552 | D178: 107.3786552 | F178: 0 | G178: 0 | H178: 3.18957890049171+1.8984834184744i | I178: 13.77765285 | J178: 0 | K178: 0
A179: 176 | B179: 1.76 | C179: 107.9922475 | D179: 107.9922475 | F179: 0 | G179: 0 | H179: -2.72271680316517-1.63193364876538i | I179: 10.07639422 | J179: 0 | K179: 0
A180: 177 | B180: 1.77 | C180: 108.6058398 | D180: 108.6058398 | F180: 0 | G180: 0 | H180: 2.2312573532928+1.3466860060481i | I180: 6.792072576 | J180: 0 | K180: 0
A181: 178 | B181: 1.78 | C181: 109.2194321 | D181: 109.2194321 | F181: 0 | G181: 0 | H181: -1.73378608348156-1.05370519073172i | I181: 4.116308812 | J181: 0 | K181: 0
A182: 179 | B182: 1.79 | C182: 109.8330244 | D182: 109.8330244 | F182: 0 | G182: 0 | H182: 1.24813306411528+0.763803882618123i | I182: 2.141232517 | J182: 0 | K182: 0
A183: 180 | B183: 1.8 | C183: 110.4466167 | D183: 110.4466167 | F183: 0 | G183: 0 | H183: -0.79065500225514-0.487187322166109i | I183: 0.8624868195 | J183: 0 | K183: 0
A184: 181 | B184: 1.81 | C184: 111.060209 | D184: 111.060209 | F184: 0 | G184: 0 | H184: 0.375608467874595+0.233036043110031i | I184: 0.1953875185 | J184: 0 | K184: 0
A185: 182 | B185: 1.82 | C185: 111.6738014 | D185: 111.6738014 | F185: 0 | G185: 0 | H185: -1.46390776514678E-002-9.14473570800915E-003i | I185: 0.0002979287857 | J185: 0 | K185: 0
A186: 183 | B186: 1.83 | C186: 112.2873937 | D186: 112.2873937 | F186: 0 | G186: 0 | H186: -0.283594375443239-0.178367570895713i | I186: 0.1122407601 | J186: 0 | K186: 0
A187: 184 | B187: 1.84 | C187: 112.900986 | D187: 112.900986 | F187: 0 | G187: 0 | H187: 0.513648419430005+0.325264274374695i | I187: 0.369631547 | J187: 0 | K187: 0
A188: 185 | B188: 1.85 | C188: 113.5145783 | D188: 113.5145783 | F188: 0 | G188: 0 | H188: -0.67337056979663-0.429307137741275i | I188: 0.6377325428 | J188: 0 | K188: 0
A189: 186 | B189: 1.86 | C189: 114.1281706 | D189: 114.1281706 | F189: 0 | G189: 0 | H189: 0.763823762814815+0.490277899754567i | I189: 0.8237991596 | J189: 0 | K189: 0
A190: 187 | B190: 1.87 | C190: 114.7417629 | D190: 114.7417629 | F190: 0 | G190: 0 | H190: -0.789067973254728-0.509906448594988i | I190: 0.8826328527 | J190: 0 | K190: 0
A191: 188 | B191: 1.88 | C191: 115.3553552 | D191: 115.3553552 | F191: 0 | G191: 0 | H191: 0.755813713871021+0.491710757311926i | I191: 0.8130338389 | J191: 0 | K191: 0
A192: 189 | B192: 1.89 | C192: 115.9689476 | D192: 115.9689476 | F192: 0 | G192: 0 | H192: -0.672967579064599-0.44075780327484i | I192: 0.6471528036 | J192: 0 | K192: 0
A193: 190 | B193: 1.9 | C193: 116.5825399 | D193: 116.5825399 | F193: 0 | G193: 0 | H193: 0.551094412617545+0.363358250025298i | I193: 0.4357342695 | J193: 0 | K193: 0
A194: 191 | B194: 1.91 | C194: 117.1961322 | D194: 117.1961322 | F194: 0 | G194: 0 | H194: -0.401823868430851-0.266710596895357i | I194: 0.2325969637 | J194: 0 | K194: 0
A195: 192 | B195: 1.92 | C195: 117.8097245 | D195: 117.8097245 | F195: 0 | G195: =IMABS(F195)^2 -> 0 | H195: 0.237230972056692+0.158512667781113i | I195: =IMABS(H195)^2 -> 0.08140479995 | J195: 0 | K195: =IMABS(J195)^2 -> 0
A196: 193 | B196: 1.93 | C196: =A196*2*PI()/10.24 -> 118.4233168 | D196: =A196*2*PI()/10.24 -> 118.4233168 | F196: 0 | G196: 0 | H196: -6.92207216004744E-002-4.65596196787999E-002i | I196: 0.006959306484 | J196: 0 | K196: 0
A197: =A196+1 -> 194 | B197: =A197*0.01 -> 1.94 | C197: 119.0369091 | D197: 119.0369091 | F197: 0 | G197: 0 | H197: -9.10542032184022E-002-6.16519516518912E-002i | I197: 0.01209183107 | J197: 0 | K197: 0
A198: 195 | B198: 1.95 | C198: 119.6505015 | D198: 119.6505015 | F198: 0 | G198: 0 | H198: 0.233715853869517+0.159294760237192i | I198: 0.07999792099 | J198: 0 | K198: 0
A199: 196 | B199: 1.96 | C199: 120.2640938 | D199: 120.2640938 | F199: 0 | G199: 0 | H199: -0.350600274237668-0.2405388080294i | I199: 0.1807794705 | J199: 0 | K199: 0
A200: 197 | B200: 1.97 | C200: 120.8776861 | D200: 120.8776861 | F200: 0 | G200: 0 | H200: 0.43559484697499+0.300821215649633i | I200: 0.2802362745 | J200: 0 | K200: 0
A201: 198 | B201: 1.98 | C201: 121.4912784 | D201: 121.4912784 | F201: 0 | G201: 0 | H201: -0.484860257742723-0.337045490072983i | I201: 0.3486891319 | J201: 0 | K201: 0
... 825 more rows
